fUST/lending_fUST_20240816
["ID","MTS","AMOUNT","RATE_DAILY","PERIOD"]
[335070680,1723806646635,-500.0,0.00043835,120]
[335070681,1723806646644,-500.0,0.00043835,120]
[335070682,1723806646654,-500.0,0.00043835,120]
[335070683,1723806646664,-500.0,0.00043835,120]
[335070684,1723806646674,-453.941549,0.00043835,120]
[335070685,1723806646684,-453.941549,0.00043835,120]
[335070686,1723806646693,-504.33857061,0.00043835,120]
[335070687,1723806646702,-500.0,0.00043835,120]
[335070688,1723806646712,-1012.59,0.00043835,120]
[335070689,1723806646722,-453.941549,0.00043835,120]
[335070690,1723806646731,-453.941549,0.00043835,120]
[335070691,1723806646741,-567.41,0.00043835,120]
[335070692,1723806646750,-576.53,0.00043835,120]
[335070693,1723806646759,-500.0,0.00043835,120]
[335070694,1723806646769,-484.78581,0.00043835,120]
[335070695,1723806646778,-484.78581,0.00043835,120]
[335070696,1723806646788,-6542.98,0.00043835,120]
[335070697,1723806646798,-3143.94,0.00043835,120]
[335070698,1723806646808,-484.78581,0.00043835,120]
[335070699,1723806646818,-3143.94,0.00043835,120]
[335070700,1723806646830,-628.45,0.00043835,120]
[335070701,1723806646840,-3143.94,0.00043835,120]
[335070702,1723806646850,-484.78581,0.00043835,120]
[335070703,1723806646860,-3143.94,0.00043835,120]
[335070704,1723806646870,-3143.94,0.00043835,120]
[335070705,1723806646880,-3143.94,0.00043835,120]
[335070706,1723806646890,-509.24459666,0.00043835,120]
[335070707,1723806646900,-3143.94,0.00043835,120]
[335070708,1723806646909,-3143.94,0.00043835,120]
[335070709,1723806646919,-3143.94,0.00043835,120]
[335070710,1723806646928,-3143.94,0.00043835,120]
[335070711,1723806646939,-3143.94,0.00043835,120]
[335070712,1723806646948,-514.32432617,0.00043835,120]
[335070713,1723806646958,-3143.94,0.00043835,120]
[335070714,1723806646967,-3143.94,0.00043835,120]
[335070715,1723806646977,-3143.94,0.00043835,120]
[335070716,1723806646988,-3143.94,0.00043835,120]
[335070717,1723806646998,-3143.94,0.00043835,120]
[335070718,1723806647008,-500.0,0.00043835,120]
[335070719,1723806647018,-3143.94,0.00043835,120]
[335070720,1723806647029,-6542.98,0.00043835,120]
[335070721,1723806647039,-3143.94,0.00043835,120]
[335070722,1723806647049,-500.0,0.00043835,120]
[335070723,1723806647059,-6542.98,0.00043835,120]
[335070724,1723806647069,-3143.94,0.00043835,120]
[335070725,1723806647081,-6542.98,0.00043835,120]
[335070726,1723806647091,-3143.94,0.00043835,120]
[335070727,1723806647101,-6542.98,0.00043835,120]
[335070728,1723806647111,-3143.94,0.00043835,120]
[335070729,1723806647121,-6542.98,0.00043835,120]
[335070730,1723806647131,-3143.94,0.00043835,120]
[335070731,1723806647141,-581.08,0.00043835,120]
[335070732,1723806647151,-6542.98,0.00043835,120]
[335070733,1723806647161,-3143.94,0.00043835,120]
[335070734,1723806647170,-581.08,0.00043835,120]
[335070735,1723806647180,-6542.98,0.00043835,120]
[335070736,1723806647190,-3143.97860132,0.00043835,120]
[335070737,1723806647200,-581.08,0.00043835,120]
[335070738,1723806647210,-6542.98,0.00043835,120]
[335070739,1723806647220,-581.08,0.00043835,120]
[335070740,1723806647230,-6542.98,0.00043835,120]
[335070741,1723806647240,-6542.98,0.00043835,120]
[335070742,1723806647250,-581.08,0.00043835,120]
[335070743,1723806647264,-6542.98,0.00043835,120]
[335070744,1723806647274,-581.08,0.00043835,120]
[335070745,1723806647284,-581.08,0.00043835,120]
[335070746,1723806647294,-6542.98,0.00043835,120]
[335070747,1723806647305,-581.08,0.00043835,120]
[335070748,1723806647314,-2322.02078856,0.00043835,120]
[335070749,1723806647847,-601.69102478,0.00011894,2]
[335070750,1723806647857,-4220.95921144,0.00043835,120]
[335070751,1723806647867,-581.08,0.00043835,120]
[335070752,1723806647876,-6542.98,0.00043835,120]
[335070753,1723806647886,-6542.98,0.00043835,120]
[335070754,1723806647896,-500.0,0.00043835,120]
[335070755,1723806647905,-4614.77706464,0.00043835,120]
[335070756,1723806647925,-1928.20293536,0.00043835,120]
[335070757,1723806647935,-506.43482426,0.00043835,20]
[335070758,1723806647944,-6542.98,0.00043835,120]
[335070759,1723806647954,-6542.98,0.00043835,120]
[335070760,1723806647963,-151.0,0.00043835,120]
[335070761,1723806647973,-6542.98,0.00043835,120]
[335070762,1723806647983,-151.0,0.00043835,120]
[335070763,1723806647992,-6542.98,0.00043835,120]
[335070764,1723806648002,-6542.98,0.00043835,120]
[335070765,1723806648013,-6542.98,0.00043835,120]
[335070766,1723806648023,-500.0,0.00043835,120]
[335070767,1723806648032,-6543.01302192,0.00043835,120]
[335070768,1723806648042,-500.0,0.00043835,120]
[335070769,1723806648052,-500.0,0.00043835,120]
[335070770,1723806648062,-581.08,0.00043835,120]
[335070771,1723806648071,-581.08,0.00043835,120]
[335070772,1723806648082,-795.79,0.00043835,120]
[335070773,1723806648092,-581.08,0.00043835,120]
[335070774,1723806648103,-581.08,0.00043835,120]
[335070775,1723806648115,-581.08,0.00043835,120]
[335070776,1723806648126,-581.08,0.00043835,120]
[335070777,1723806648138,-581.08,0.00043835,120]
[335070778,1723806648149,-581.08,0.00043835,120]
[335070779,1723806648160,-517.92033415,0.00043835,120]
[335070780,1723806648172,-581.08,0.00043835,120]
[335070781,1723806648183,-501.90631069,0.00043835,120]
[335070782,1723806648194,-581.08,0.00043835,120]
[335070783,1723806648204,-500.0,0.00043835,120]
[335070784,1723806648214,-581.08,0.00043835,120]
[335070785,1723806648225,-581.08,0.00043835,120]
[335070786,1723806648234,-581.08,0.00043835,120]
[335070787,1723806648244,-581.08,0.00043835,120]
[335070788,1723806648255,-519.84,0.00043835,120]
[335070789,1723806648268,-581.12665062,0.00043835,120]
[335070790,1723806648278,-500.0,0.00043835,120]
[335070791,1723806648288,-272.462073,0.00043835,120]
[335070792,1723806648299,-272.462073,0.00043835,120]
[335070793,1723806648308,-695.69,0.00043835,120]
[335070794,1723806648319,-602.51491474,0.00043835,120]
[335070795,1723806648330,-500.0,0.00043835,30]
[335070796,1723806648345,-500.0,0.00043835,120]
[335070797,1723806648356,-500.0,0.00043835,120]
[335070798,1723806648367,-500.0,0.00043835,120]
[335070799,1723806648377,-719.85,0.00043835,120]
[335070800,1723806648387,-990.9,0.00043835,120]
[335070801,1723806648397,-500.0,0.00043835,120]
[335070802,1723806648408,-937.8,0.00043835,120]
[335070803,1723806648418,-502.3535197,0.00043835,120]
[335070804,1723806648428,-500.0,0.00043835,120]
[335070805,1723806648438,-500.0,0.00043835,120]
[335070806,1723806648449,-1713.67,0.00043835,120]
[335070807,1723806648459,-599.8,0.00043835,120]
[335070808,1723806648469,-1164.08,0.00043835,120]
[335070809,1723806648479,-616.64393771,0.00043835,2]
[335070810,1723806648488,-272.462073,0.00043835,120]
[335070811,1723806648498,-272.462073,0.00043835,120]
[335070812,1723806648508,-200.0,0.00043873,4]
[335070813,1723806648518,-200.0,0.00043873,3]
[335070814,1723806648528,-200.17949037,0.00043873,10]
[335070815,1723806648538,-151.0,0.00043889,120]
[335070816,1723806648547,-151.0,0.00043889,120]
[335070817,1723806648557,-151.0,0.00043889,120]
[335070818,1723806648566,-288.738662,0.00043889,120]
[335070819,1723806648577,-151.0,0.00043889,120]
[335070820,1723806648588,-188.094477,0.00043889,120]
[335070821,1723806648598,-188.094477,0.00043889,120]
[335070822,1723806648608,-4000.84,0.00043889,60]
[335070823,1723806648618,-4000.84,0.00043889,60]
[335070824,1723806648628,-4000.84,0.00043899,60]
[335070825,1723806648637,-4000.84,0.00043899,60]
[335070826,1723806648647,-4000.84,0.00043899,60]
[335070827,1723806648657,-4000.84,0.00043899,60]
[335070828,1723806648666,-4000.84,0.00043899,60]
[335070829,1723806648676,-4000.84,0.00043899,60]
[335070830,1723806648686,-4001.05717532,0.00043899,60]
[335070831,1723806648696,-151863.68043706,0.000439,30]
[335070832,1723806648885,-47.50544439,0.000439,30]
[335070833,1723806649110,-5878.00291565,0.000439,30]
[335070834,1723806649570,-154.79103211,0.00011894,2]
[335070835,1723806649582,-500.0,0.00043835,120]
[335070836,1723806649599,-21500.69263235,0.000439,30]
[335070837,1723806649609,-247.597872,0.000439,120]
[335070838,1723806649619,-151.0,0.000439,120]
[335070839,1723806649629,-151.0,0.000439,120]
[335070840,1723806649638,-152.217269,0.000439,120]
[335070841,1723806649648,-151.0,0.000439,120]
[335070842,1723806649657,-151.0,0.000439,120]
[335070843,1723806649667,-151.0,0.000439,120]
[335070844,1723806649677,-151.0,0.000439,120]
[335070845,1723806649687,-319.240314,0.000439,120]
[335070846,1723806649696,-435.196115,0.000439,120]
[335070847,1723806649706,-319.240314,0.000439,120]
[335070848,1723806649715,-435.196115,0.000439,120]
[335070849,1723806649725,-151.0,0.000439,120]
[335070850,1723806649736,-151.0,0.000439,120]
[335070851,1723806649746,-151.0,0.000439,120]
[335070852,1723806649755,-151.0,0.000439,120]
[335070853,1723806649765,-452.232632,0.000439,120]
[335070854,1723806649774,-452.232632,0.000439,120]
[335070855,1723806649783,-151.0,0.000439,120]
[335070856,1723806649793,-193.07026,0.000439,120]
[335070857,1723806649803,-151.0,0.000439,120]
[335070858,1723806649812,-193.353333,0.000439,120]
[335070859,1723806649822,-193.353333,0.000439,120]
[335070860,1723806649833,-151.0,0.000439,120]
[335070861,1723806649842,-151.0,0.000439,120]
[335070862,1723806649851,-164.593015,0.000439,120]
[335070863,1723806649860,-164.593015,0.000439,120]
[335070864,1723806649870,-151.0,0.000439,120]
[335070865,1723806649880,-151.0,0.000439,120]
[335070866,1723806649889,-453.941549,0.000439,120]
[335070867,1723806649898,-453.941549,0.000439,120]
[335070868,1723806649908,-154.79103311,0.00044,120]
[335070869,1723806649917,-4005.86,0.00044,30]
[335070870,1723806649926,-832.32200091,0.00044109,61]
[335070871,1723806649936,-500.0,0.00044109,120]
[335070872,1723806649945,-500.0,0.00044109,120]
[335070873,1723806649955,-500.0,0.00044109,120]
[335070874,1723806649964,-234.4940716,0.00044109,120]
[335070875,1723806649973,-238.89337247,0.00044109,120]
[335070876,1723806649983,-500.0,0.00044109,120]
[335070877,1723806649992,-500.0,0.00044109,120]
[335070878,1723806650001,-509.9722405,0.00044109,120]
[335070879,1723806650011,-507.77154623,0.00044109,120]
[335070880,1723806650021,-500.0,0.00044109,120]
[335070881,1723806650030,-500.0,0.00044109,120]
[335070882,1723806650040,-500.0,0.00044109,120]
[335070883,1723806650049,-500.0,0.00044109,120]
[335070884,1723806650155,-500.0,0.00044109,120]
[335070885,1723806650167,-500.0,0.00044109,120]
[335070886,1723806650177,-500.0,0.00044109,60]
[335070887,1723806650186,-506.747327,0.00044109,120]
[335070888,1723806650196,-500.0,0.00044109,120]
[335070889,1723806650206,-500.0,0.00044109,120]
[335070890,1723806650215,-500.0,0.00044109,120]
[335070891,1723806650225,-500.0,0.00044109,120]
[335070892,1723806650234,-500.0,0.00044109,120]
[335070893,1723806650245,-2629.83,0.00044109,120]
[335070894,1723806650255,-528.25,0.00044109,120]
[335070895,1723806650267,-500.0,0.00044109,120]
[335070896,1723806650276,-500.0,0.00044109,120]
[335070897,1723806650285,-500.0,0.00044109,120]
[335070898,1723806650295,-508.41309061,0.00044109,120]
[335070899,1723806650305,-500.0,0.00044109,120]
[335070900,1723806650314,-512.29940991,0.00044109,120]
[335070901,1723806650325,-500.0,0.00044109,120]
[335070902,1723806650335,-500.0,0.00044109,120]
[335070903,1723806650345,-505.5438996,0.00044109,120]
[335070904,1723806650355,-638.38691746,0.00044109,120]
[335070905,1723806650365,-506.38,0.00044109,120]
[335070906,1723806650374,-501.84905761,0.00044109,120]
[335070907,1723806650384,-500.0,0.00044109,120]
[335070908,1723806650393,-500.0,0.00044109,120]
[335070909,1723806650402,-500.0,0.00044109,120]
[335070910,1723806650411,-500.0,0.00044109,120]
[335070911,1723806650421,-500.0,0.00044109,120]
[335070912,1723806650430,-526.04740184,0.00044109,120]
[335070913,1723806650439,-622.77,0.00044109,120]
[335070914,1723806650449,-500.0,0.00044109,120]
[335070915,1723806650459,-500.0,0.00044109,120]
[335070916,1723806650469,-500.0,0.00044109,120]
[335070917,1723806650479,-500.0,0.00044109,120]
[335070918,1723806650489,-500.0,0.00044109,120]
[335070919,1723806650499,-151.0,0.00044109,120]
[335070920,1723806650509,-500.0,0.00044109,120]
[335070921,1723806650518,-500.0,0.00044109,120]
[335070922,1723806650529,-451.81393421,0.00044109,120]
[335070923,1723806650539,-500.0,0.00044109,120]
[335070924,1723806650549,-515.23396153,0.00044109,120]
[335070925,1723806650558,-500.0,0.00044109,120]
[335070926,1723806650568,-500.0,0.00044109,120]
[335070927,1723806650580,-500.0,0.00044109,120]
[335070928,1723806650590,-2241.99,0.00044109,120]
[335070929,1723806650599,-495.24740951,0.00044109,120]
[335070930,1723806650608,-225.92345058,0.00044109,120]
[335070931,1723806650618,-500.0,0.00044109,120]
[335070932,1723806650628,-500.0,0.00044109,120]
[335070933,1723806650638,-500.0,0.00044109,120]
[335070934,1723806650648,-500.0,0.00044109,120]
[335070935,1723806650657,-151.0,0.00044109,120]
[335070936,1723806650666,-501.9507127,0.00044109,120]
[335070937,1723806650676,-505.23404836,0.00044109,120]
[335070938,1723806650685,-500.0,0.00044109,120]
[335070939,1723806650695,-500.0,0.00044109,120]
[335070940,1723806650706,-500.0,0.00044109,120]
[335070941,1723806650716,-500.0,0.00044109,120]
[335070942,1723806650725,-500.0,0.00044109,120]
[335070943,1723806650735,-500.0,0.00044109,120]
[335070944,1723806650745,-500.0,0.00044109,120]
[335070945,1723806650754,-500.0,0.00044109,120]
[335070946,1723806650764,-572.9,0.00044109,120]
[335070947,1723806650775,-505.35442501,0.00044109,120]
[335070948,1723806650784,-500.0,0.00044109,120]
[335070949,1723806650794,-502.55256181,0.00044109,120]
[335070950,1723806650803,-500.0,0.00044109,120]
[335070951,1723806650813,-352.98507888,0.00044109,120]
[335070952,1723806650823,-1017.95,0.00044109,120]
[335070953,1723806650835,-500.0,0.00044109,120]
[335070954,1723806650844,-331.18126632,0.00044109,120]
[335070961,1723807617729,1312.74984726,0.00027,120]
[335070962,1723807625734,747.59365431,0.00027,120]
[335070963,1723807629144,-300.0,0.0001144,2]
[335070964,1723807629167,-291.10396159,0.0001144,2]
[335070965,1723807641926,273.37336231,9.9e-05,2]
[335070966,1723807657290,273.37336231,9.9e-05,2]
[335070967,1723807673173,273.37336231,9.9e-05,2]
[335070968,1723807688614,273.37336231,9.9e-05,2]
[335070969,1723807696697,273.37336231,9.9e-05,2]
[335070970,1723807705559,273.37336231,9.9e-05,2]
[335070971,1723807713943,273.37336231,9.9e-05,2]
[335070972,1723807717760,465.2977237,9.9e-05,2]
[335070973,1723807718634,3609.28567796,9.9e-05,2]
[335070974,1723807722506,273.37336231,9.9e-05,2]
[335070975,1723807722563,154.79103211,9.9e-05,2]
[335070978,1723807726748,2674.41440902,0.0001,2]
[335070979,1723807728300,218.66051313,9.9e-05,2]
[335070980,1723807733560,405.30195188,9.9e-05,2]
[335070981,1723807735771,4719.09219548,9.9e-05,2]
[335070982,1723807738436,273.37336231,9.9e-05,2]
[335070983,1723807742286,2111.88609281,9.9e-05,2]
[335070984,1723807742901,2926.18841505,9.9e-05,2]
[335070985,1723807748398,154.84620557,9.9e-05,2]
[335070986,1723807756104,-166.666677,0.00010733,2]
[335070987,1723807756134,-166.666677,0.00011012,2]
[335070988,1723807756160,-166.666677,0.00011292,2]
[335070989,1723807756185,-300.0,0.00011439,2]
[335070990,1723807756208,-1670.92226544,0.0001144,2]
[335070991,1723807756232,-240.49279008,0.0001144,2]
[335070992,1723807756255,-300.0,0.0001144,2]
[335070993,1723807756277,-3738.90550759,0.00011441,2]
[335070994,1723807764231,-345.58,0.00010959,2]
[335070995,1723807792833,283.13416877,9.9e-05,2]
[335070996,1723807802528,263.34760791,9.9e-05,2]
[335071038,1723807835289,2111.14414603,9.9e-05,2]
[335071039,1723807836291,218.66051313,9.9e-05,2]
[335071047,1723807839304,-300.0,0.0001144,2]
[335071048,1723807839315,-254.0,0.0001144,2]
[335071049,1723807839325,-21161.09449241,0.00011441,2]
[335071050,1723807839335,-5167.98581711,0.00011631,2]
[335071051,1723807839345,-42399.32737911,0.00011712,2]
[335071052,1723807839354,-199.055759,0.00011894,2]
[335071053,1723807839364,-155.87552597,0.00011987,2]
[335071054,1723807839374,-7871.45244655,0.00011999,2]
[335071055,1723807839387,-12916.91667184,0.00011999,2]
[335071056,1723807839397,-199.21576407,0.00012,2]
[335071057,1723807839407,-4712.37284123,0.00012,2]
[335071059,1723807839417,-1000.0,0.00012,7]
[335071061,1723807839427,-1449.88891598,0.00012118,2]
[335071063,1723807839439,-3718.09690109,0.00012118,2]
[335071064,1723807839448,-7011.29579993,0.0001212,2]
[335071065,1723807839458,-9656.22406339,0.00012163,2]
[335071066,1723807839468,-396.11293162,0.000123,2]
[335071067,1723807839478,-2142.17325985,0.00012356,2]
[335071068,1723807839488,-7920.45229763,0.000125,2]
[335071069,1723807839498,-10617.9844597,0.00012506,2]
[335071070,1723807839507,-1765.95777024,0.00012516,2]
[335071071,1723807839518,-1765.95777024,0.00012516,2]
[335071072,1723807839532,-1719.5133022,0.00012551,2]
[335071073,1723807839542,-1500.0,0.00012551,2]
[335071074,1723807839551,-420.0,0.00012584,2]
[335071075,1723807839561,-5167.98581707,0.00012605,2]
[335071076,1723807839571,-2127.39988805,0.00012629,2]
[335071077,1723807839581,-1612.97059392,0.00012629,2]
[335071078,1723807839590,-1612.97059392,0.00012629,2]
[335071079,1723807839600,-21235.9689194,0.00012762,2]
[335071080,1723807839609,-1496.83719163,0.00012779,2]
[335071081,1723807839619,-1496.83719163,0.00012779,2]
[335071082,1723807839631,-2711.75574306,0.00012779,2]
[335071083,1723807839643,-160.39523982,0.00012898,2]
[335071084,1723807839652,-320.16989121,0.00012898,2]
[335071085,1723807839662,-507.68225874,0.00012934,2]
[335071086,1723807839674,-154.79103211,0.00012934,2]
[335071087,1723807839685,-269.84030826,0.00012934,7]
[335071088,1723807839695,-728.56380751,0.00012971,2]
[335071089,1723807839704,-156.95829692,0.00012971,2]
[335071090,1723807839716,-404.31033644,0.00012971,2]
[335071091,1723807839726,-534.58678596,0.00012971,2]
[335071092,1723807839735,-196.75132172,0.00012971,2]
[335071093,1723807839745,-569.37734184,0.00012971,2]
[335071094,1723807839755,-280.35654095,0.00012971,2]
[335071095,1723807839765,-210.04906408,0.00012985,2]
[335071096,1723807839775,-154.79103211,0.00012991,2]
[335071097,1723807839787,-688.45853838,0.00012991,2]
[335071098,1723807839796,-150.112233,0.00013,2]
[335071099,1723807839806,-543.83358768,0.00013025,2]
[335071100,1723807839817,-5167.98581707,0.00013091,2]
[335071101,1723807839828,-5167.98581707,0.00013578,2]
[335071102,1723807839839,-8841.788252,0.00013596,2]
[335071103,1723807839849,-301.4340064,0.00013596,2]
[335071104,1723807839860,-55451.94050567,0.00013596,2]
[335071105,1723807839871,-541.77164601,0.00013599,2]
[335071106,1723807839881,-21235.9689194,0.00013678,2]
[335071107,1723807839891,-999.03147275,0.00013688,2]
[335071108,1723807839901,-2165.54782924,0.00013688,2]
[335071109,1723807839910,-1752.49576635,0.00013688,3]
[335071110,1723807839920,-201.90108991,0.00013688,2]
[335071111,1723807839930,-223.31574828,0.00013688,2]
[335071112,1723807839940,-157.98285694,0.00013688,2]
[335071113,1723807839950,-811.12417981,0.00013697,2]
[335071114,1723807839960,-305.12880689,0.00013697,2]
[335071115,1723807839974,-494.54531599,0.00013697,2]
[335071116,1723807839983,-400.57061103,0.00013698,2]
[335071117,1723807839994,-251.8725953,0.00013698,2]
[335071118,1723807840004,-176.3108167,0.00013698,2]
[335071119,1723807840015,-536.92618653,0.00013698,2]
[335071120,1723807840024,-500.0,0.00013698,2]
[335071121,1723807840203,-500.0,0.00013698,2]
[335071122,1723807840215,-899.2851663,0.00013698,2]
[335071123,1723807840225,-2617.67290406,0.00013698,2]
[335071124,1723807840236,-154.79103211,0.00013698,2]
[335071125,1723807840245,-281.09871545,0.00013698,2]
[335071126,1723807840256,-422.17784127,0.00013698,2]
[335071127,1723807840266,-154.89374893,0.00013698,2]
[335071128,1723807840278,-3000.0,0.00013699,2]
[335071129,1723807840288,-186.270078,0.00013699,2]
[335071130,1723807840298,-500.0,0.00013699,2]
[335071131,1723807840308,-500.0,0.00013699,2]
[335071132,1723807840318,-500.0,0.00013699,2]
[335071133,1723807840328,-500.0,0.00013699,2]
[335071134,1723807840338,-500.0,0.00013699,2]
[335071135,1723807840349,-500.0,0.00013699,2]
[335071136,1723807840358,-500.0,0.00013699,2]
[335071137,1723807840368,-500.0,0.00013699,2]
[335071138,1723807840378,-500.0,0.00013699,2]
[335071139,1723807840389,-303.01890761,0.00013699,2]
[335071140,1723807840398,-500.0,0.00013699,2]
[335071141,1723807840408,-500.0,0.00013699,2]
[335071142,1723807840418,-500.0,0.00013699,2]
[335071143,1723807840427,-500.0,0.00013699,2]
[335071144,1723807840436,-500.0,0.00013699,2]
[335071145,1723807840446,-500.0,0.00013699,2]
[335071146,1723807840455,-500.0,0.00013699,2]
[335071147,1723807840464,-410.17633879,0.00013699,2]
[335071148,1723807840473,-500.0,0.00013699,2]
[335071149,1723807840483,-500.0,0.00013699,2]
[335071150,1723807840492,-500.0,0.00013699,2]
[335071151,1723807840502,-500.0,0.00013699,2]
[335071152,1723807840512,-500.0,0.00013699,2]
[335071153,1723807840522,-500.0,0.00013699,2]
[335071154,1723807840532,-500.0,0.00013699,2]
[335071155,1723807840542,-500.0,0.00013699,2]
[335071156,1723807840552,-500.0,0.00013699,2]
[335071157,1723807840562,-500.0,0.00013699,2]
[335071158,1723807840572,-500.0,0.00013699,2]
[335071159,1723807840581,-500.0,0.00013699,2]
[335071160,1723807840590,-500.0,0.00013699,2]
[335071161,1723807840600,-188.49871468,0.00013792,2]
[335071163,1723807840610,-850.5788145,0.00013792,2]
[335071164,1723807840620,-155.17489998,0.00013792,2]
[335071165,1723807840631,-154.99369496,0.00013792,2]
[335071166,1723807840643,-174.75672236,0.00013792,2]
[335071167,1723807840653,-155.00412937,0.00013792,2]
[335071168,1723807840663,-154.79103211,0.00013792,2]
[335071169,1723807840673,-155.32504483,0.00013792,2]
[335071170,1723807840683,-154.79103211,0.00013792,2]
[335071171,1723807840693,-226.77809033,0.00013792,2]
[335071172,1723807840702,-724.39999998,0.00013792,2]
[335071173,1723807840715,-154.79103211,0.00013792,2]
[335071174,1723807840725,-587.0,0.00013842,2]
[335071175,1723807840735,-10617.9844597,0.00013961,2]
[335071176,1723807840745,-154.79103211,0.00013971,2]
[335071177,1723807840755,-229.87239205,0.00013971,2]
[335071178,1723807840766,-154.9136217,0.00013971,2]
[335071179,1723807840775,-181.28685074,0.00013971,2]
[335071180,1723807840786,-155.36827262,0.00013971,2]
[335071181,1723807840795,-354.79141035,0.00013971,2]
[335071182,1723807840805,-10617.9844597,0.00014112,2]
[335071183,1723807840815,-191.92946164,0.00014145,2]
[335071184,1723807840825,-1448.83833814,0.00014145,2]
[335071185,1723807840834,-154.84433196,0.00014199,2]
[335071186,1723807840844,-246.66928391,0.00014245,2]
[335071187,1723807840854,-173.536523,0.00014247,2]
[335071188,1723807840864,-10617.9844597,0.00014509,2]
[335071189,1723807840874,-782.12449386,0.00015,2]
[335071191,1723807840884,-823.0,0.00015226,2]
[335071193,1723807840894,-334.33627772,0.00015707,7]
[335071195,1723807840904,-500.0,0.00016438,2]
[335071197,1723807840914,-500.0,0.00016438,2]
[335071199,1723807840924,-500.0,0.00016438,2]
[335071201,1723807840933,-500.0,0.00016438,2]
[335071203,1723807840943,-500.0,0.00016438,2]
[335071205,1723807840953,-500.0,0.00016438,2]
[335071207,1723807840963,-500.0,0.00016438,2]
[335071209,1723807840973,-500.0,0.00016438,2]
[335071211,1723807840983,-500.0,0.00016438,2]
[335071213,1723807840993,-500.0,0.00016438,2]
[335071215,1723807841002,-500.0,0.00016438,2]
[335071217,1723807841012,-500.0,0.00016438,2]
[335071219,1723807841022,-500.0,0.00016438,2]
[335071221,1723807841034,-500.0,0.00016438,2]
[335071223,1723807841044,-500.0,0.00016438,2]
[335071225,1723807841053,-500.0,0.00016438,2]
[335071228,1723807841073,-500.0,0.00016438,2]
[335071230,1723807841084,-500.0,0.00016438,2]
[335071232,1723807841094,-500.0,0.00016438,2]
[335071234,1723807841104,-500.0,0.00016438,2]
[335071236,1723807841115,-500.0,0.00016438,2]
[335071238,1723807841125,-500.0,0.00016438,2]
[335071240,1723807841135,-500.0,0.00016438,2]
[335071242,1723807841146,-500.0,0.00016438,2]
[335071243,1723807841156,-500.0,0.00016438,2]
[335071245,1723807841168,-500.0,0.00016438,2]
[335071248,1723807841179,-500.0,0.00016438,2]
[335071250,1723807841190,-500.0,0.00016438,2]
[335071252,1723807841200,-500.0,0.00016438,2]
[335071254,1723807841211,-651.69224136,0.00016438,2]
[335071256,1723807841221,-500.0,0.00016438,2]
[335071258,1723807841231,-500.0,0.00016438,2]
[335071260,1723807841241,-500.0,0.00016438,2]
[335071262,1723807841251,-500.0,0.00016438,2]
[335071264,1723807841262,-500.0,0.00016438,2]
[335071266,1723807841272,-500.0,0.00016438,2]
[335071268,1723807841284,-500.0,0.00016438,2]
[335071270,1723807841298,-500.0,0.00016438,2]
[335071272,1723807841308,-286.30775861,0.00016438,2]
[335071274,1723807841318,-500.0,0.00016438,2]
[335071277,1723807841329,-500.0,0.00016438,2]
[335071279,1723807841339,-500.0,0.00016438,2]
[335071281,1723807841349,-500.0,0.00016438,2]
[335071282,1723807841360,-500.0,0.00016438,2]
[335071283,1723807841370,-500.0,0.00016438,2]
[335071284,1723807841380,-500.0,0.00016438,2]
[335071285,1723807841391,-500.0,0.00016438,2]
[335071286,1723807841401,-500.0,0.00016438,2]